Cogmind - Beta 15 @@@ ROGUE MODE // 2025.09.10 @ 16:36:32 Player: YA-B01 Result: Destroyed by G-47 Trooper with Particle Gun Performance ------------- Evolutions (1) 500 Regions Visited (2) 400 Robots Destroyed (24) 120 Value Destroyed (601) 601 Prototype IDs (0) 0 Alien Tech Used (0) 0 Bonus (0) 0 TOTAL SCORE: 1621 Bonus ------- None Cogmind --------- Core Integrity 0/400 Matter 261/300 Energy 100/100 System Corruption 0% Temperature Hot (268) Movement Core (350) Ox6 Location -9/Materials Parts ------- > --- POWER (1) -------- (None) > --- PROPULSION (3) --- (None) > --- UTILITY (2) ------ Large Storage Unit > --- WEAPON (3) ------- (None) > --- INVENTORY (15) --- Ion Engine Ion Engine Large Storage Unit Seismic Detector Seismic Detector ECM Suite Mining Claw Peak State ------------ > --- POWER ------------ Ion Engine > --- PROPULSION ------- Wheel Wheel Compact Wheel > --- UTILITY ---------- Heat Sink Large Storage Unit > --- WEAPON ----------- Medium Laser Particle Gun > --- INVENTORY -------- Ion Engine Large Storage Unit Seismic Detector Seismic Detector ECM Suite Medium Laser Assault Rifle Mining Claw [Rating: 9] Favorites ----------- Power Ion Engine Engine Ion Engine Propulsion Light Treads Treads Light Treads Wheel Compact Wheel Utility Small Storage Unit Device Heat Sink Storage Small Storage Unit Protection Light Armor Plating Weapon Medium Laser Energy Gun Medium Laser Ballistic Gun Assault Rifle Build | -11 -10 -9 ------- Run | Yrd Mat Mat Slots Evolved 2 | . . 2 Power . | . . . Propulsion 1 | . . 1 Utility . | . . . Weapon 1 | . . 1 Parts Attached 23 | 7 10 6 Power 4 | 1 2 1 Engine 4 | 1 2 1 Core . | . . . Reactor . | . . . Propulsion 6 | 2 2 2 Treads 2 | 2 . . Leg . | . . . Wheel 4 | . 2 2 Hover . | . . . Flight . | . . . Utility 4 | 1 2 1 Device 1 | . 1 . Storage 2 | 1 . 1 Processor . | . . . Hackware . | . . . Protection 1 | . 1 . Artifact . | . . . Weapon 9 | 3 4 2 Energy Gun 6 | 1 4 1 Energy Cannon . | . . . Ballistic Gun 3 | 2 . 1 Ballistic Cannon . | . . . Launcher . | . . . Special Weapon . | . . . Impact Weapon . | . . . Slashing Weapon . | . . . Piercing Weapon . | . . . Special Melee Weapon . | . . . Unidentified Prototypes . | . . . Parts Lost 15 | . 5 10 Power 1 | . . 1 Propulsion 6 | . 2 4 Utility 2 | . 1 1 Weapon 6 | . 2 4 Highest Loss Streak 7 | . 2 7 To Critical Strikes . | . . . Average Backups 7 | 2 7 7 Power 1 | . 1 1 Propulsion 1 | 1 1 . Utility 2 | . 2 3 Weapon 1 | . 1 2 Tool/Special . | . . . Unused Backups 8 | . 2 6 Power 3 | . 2 1 Propulsion . | . . . Utility 4 | . . 4 Weapon 1 | . . 1 Tool/Special . | . . . Average Slot Usage (%) 83 | . 88 70 Engine 13 | . 14 10 Treads 13 | . 17 . Wheel 8 | . 5 20 Device 8 | . 8 5 Storage 13 | . 14 11 Energy Gun 18 | . 17 20 Ballistic Gun 7 | . 8 3 Peak Build Rating 9 | 6 8 9 Average Rating 6 | 5 6 7 On Entrance 4 | . 6 8 Naked Turns . | . . . Heaviest Build 32 | 14 17 32 Greatest Support 40 | 40 40 36 Greatest Overweight (x) 6 | . . 6 Average Overweight (x) . | . . 1 Largest Inventory Capacity 15 | 8 8 15 Average Capacity 9 | 7 8 14 Most Carried 9 | 5 8 9 Average Carried 7 | 3 7 7 Final Capacity 15 | 8 8 15 Final Carried 8 | 5 8 7 Class Distribution -------------------- 77% | Mutant 13% | Scavenger-Mutant 8% | Gunner Dominant Class ---------------- Mutant | -10/Materials Scavenger-Mutant | -9/Materials Resources | -11 -10 -9 ----------- Run | Yrd Mat Mat Matter Collected 603 | 294 243 66 Remotely . | . . . Salvage Created 821 | 79 587 155 Parts 42 | 3 33 6 Haulers Intercepted . | . . . Recyclers Shooed 3 | . 3 . Parts Field Recycled . | . . . Retrieved Matter . | . . . Parts Self-Destructed . | . . . Prevented . | . . . Kills | -11 -10 -9 ------- Run | Yrd Mat Mat Combat Hostiles Destroyed 18 | . 14 4 Guns 18 | . 14 4 Classes Destroyed 8 | 2 5 1 Worker 2 | . 2 . Builder 1 | . 1 . Tunneler 1 | 1 . . Recycler 1 | 1 . . Watcher 1 | . 1 . Swarmer 3 | . 3 . Grunt 14 | . 11 3 Brawler 1 | . . 1 Best Kill Streak 7 | 2 7 2 Combat Bots Only 5 | . 5 2 Max Kills in Single Turn 2 | 1 2 1 Gunslinging . | . . . Exploded . | . . . Melee . | . . . Uniques/NPCs Destroyed . | . . . Combat | -11 -10 -9 -------- Run | Yrd Mat Mat Hostile Shots Fired 207 | . 111 96 Missed 43 | . 21 22 Hits 164 | . 90 74 Projectile 164 | . 90 74 Critical Strikes 2 | . 1 1 Damage Taken 1942 | . 997 945 Core 650 | . 247 403 Absorbed by Shields . | . . . Core Remaining (%) 50 | 100 1 . Volleys Fired 100 | 12 69 19 Largest 3 | 2 2 3 Hottest 135 | 70 115 135 Shots Fired 176 | 24 105 47 Gun 176 | 24 105 47 Cannon . | . . . Launcher . | . . . Special . | . . . Kinetic 59 | 12 37 10 Thermal 117 | 12 68 37 Explosive . | . . . Electromagnetic . | . . . Robot Hit Streak 13 | 4 13 5 Robot Miss Streak 5 | 3 3 5 Penetration Max . | . . . Secondary Targets 5 | . 2 3 Max Gunslinging Chain 1 | . 1 1 Shots Hit Robots 116 | 12 75 29 Core Hits 41 | 3 28 10 Critical Kills 1 | . 1 . Critical Parts Destroyed . | . . . Critical Strikes 9 | 3 5 1 Burn 8 | 3 4 1 Destroy 1 | . 1 . Melee Attacks . | . . . Impact . | . . . Slashing . | . . . Piercing . | . . . Sneak Attacks . | . . . Combat Hostiles . | . . . Follow-up Attacks . | . . . Damage Inflicted 1571 | 156 1018 397 Guns 1562 | 151 1014 397 Cannons . | . . . Explosions . | . . . Melee . | . . . Ramming 9 | 5 4 . Kinetic 512 | 86 359 67 Thermal 1050 | 65 655 330 Explosive . | . . . Electromagnetic . | . . . Impact . | . . . Slashing . | . . . Piercing . | . . . Highest Corruption . | . . . Average Corruption . | . . . Corruption Purged . | . . . Corruption Blocked . | . . . Overload Shots . | . . . Overflow Damage . | . . . Projectiles . | . . . Explosions . | . . . Melee . | . . . Knockbacks . | . . . Impact . | . . . Kinetic . | . . . Secondary . | . . . Self-Inflicted Damage . | . . . Shots . | . . . Rammed 8 | 3 4 1 Targets Rammed 8 | 3 4 1 Kicked . | . . . Crushed . | . . . Highest Temperature 660 | 63 399 660 Average Temperature 164 | 24 153 242 Received Heat Transfer 1044 | . 531 513 Effects 16 | . 5 11 Shutdowns 3 | . 1 2 Energy Bleed 1 | . 1 . Interference 2 | . 2 . Matter Decay 3 | . 1 2 Damage (minor) 2 | . . 2 Damage (major) 4 | . . 4 Damage (core) 1 | . . 1 Siege Activations . | . . . Martial Activations . | . . . Shielding Activations . | . . . Robots Disrupted . | . . . Combat Hostiles . | . . . Robots Corrupted . | . . . Combat Hostiles . | . . . Parts Fried . | . . . Impact Corruptions . | . . . Robots Melted . | . . . Combat Hostiles . | . . . Parts Melted 4 | . 4 . Heat Transferred 3515 | 407 2146 962 Parts Sabotaged . | . . . Parts Stolen . | . . . Parts Stripped . | . . . Power Chain Reactions . | . . . Alert | -11 -10 -9 ------- Run | Yrd Mat Mat Maximum Alert Level . | . . . Low Security (%) 100 | 100 100 100 Level 1 . | . . . Level 2 . | . . . Level 3 . | . . . Level 4 . | . . . Level 5 . | . . . High Security . | . . . Max Security . | . . . Peak Influence 146 | 5 146 57 Initial 57 | . . 57 Average 30 | 1 34 34 Influence Increases 527 | 10 397 120 Destroy 0b10 Robot/C 360 | . 280 80 Destroy 0b10 Robot/NC 30 | 10 20 . Destroy Leader 52 | . 42 10 Successful Hack 10 | . 10 . Select Force Hacks 30 | . 30 . Disable Machine 15 | . . 15 Lose Combat Pursuer 30 | . 15 15 Influence Decreases 527 | 10 259 258 Entered New Map 81 | . . 81 Time Decay 309 | 10 209 90 Lost Part 137 | . 50 87 Squads Dispatched 5 | . 4 1 Investigation 5 | . 4 1 Extermination . | . . . Reinforcement . | . . . Assault . | . . . Garrison . | . . . Intercept . | . . . Searches Triggered . | . . . Construction Impeded . | . . . Haulers Reinforced . | . . . Active Scanning Responses . | . . . Cargo Convoy Interrupts . | . . . Stealth | -11 -10 -9 --------- Run | Yrd Mat Mat Distress Signals 2 | . 1 1 Communications Jammed . | . . . Distress Signals . | . . . Times Spotted 30 | . 17 13 Peak Tracking Total 9 | . 6 9 Tactical Retreats 2 | . 1 1 Traps | -11 -10 -9 ------- Run | Yrd Mat Mat Traps Triggered 4 | . 3 1 Indirectly . | . . . Trap Hack Attempts . | . . . Triggered . | . . . Disarmed . | . . . Reprogrammed . | . . . Reused . | . . . Traps Extracted . | . . . Installed . | . . . Triggered . | . . . Machines | -11 -10 -9 ---------- Run | Yrd Mat Mat Machines Disabled 1 | . . 1 Max in Single Turn 1 | . . 1 Machines Repaired . | . . . Machines Dismantled . | . . . Machines Sabotaged . | . . . Overloaded Fab Kills . | . . . Hacking | -11 -10 -9 --------- Run | Yrd Mat Mat Machines Accessed 2 | . 2 . Terminals 1 | . 1 . Fabricators . | . . . Repair Stations . | . . . Recycling Units 1 | . 1 . Scanalyzers . | . . . Garrison Access . | . . . Total Hacks 5 | . 5 . Successful 4 | . 4 . Failed 1 | . 1 . Catastrophic . | . . . Database Lockouts . | . . . Manual 5 | . 5 . Terminals 4 | . 4 . Fabricators . | . . . Repair Stations . | . . . Recycling Units 1 | . 1 . Scanalyzers . | . . . Garrison Access . | . . . Terminal Hacks . | . . . Fabricator Hacks . | . . . Repair Station Hacks . | . . . Recycling Unit Hacks . | . . . Scanalyzer . | . . . Garrison Access Hacks . | . . . Unauthorized Hacks 4 | . 4 . Terminals 3 | . 3 . Botnet 1 | . 1 . Operators 1 | . 1 . Skim 1 | . 1 . Fabricators . | . . . Repair Stations . | . . . Recycling Units 1 | . 1 . Tunnel 1 | . 1 . Scanalyzers . | . . . Garrison Access . | . . . Data Cores Recovered . | . . . Used . | . . . Hacking Detections 1 | . 1 . Full Trace Events . | . . . Feedback Events . | . . . Feedback Blocked . | . . . Robot Schematics Acquired . | . . . Robots Built . | . . . Authchips . | . . . Time . | . . . Total Robot Build Rating . | . . . Part Schematics Acquired . | . . . Parts Built . | . . . Authchips . | . . . Time . | . . . Total Part Build Rating . | . . . Parts Repaired . | . . . Time . | . . . Parts Recycled . | . . . Recycled Matter . | . . . Retrieved Matter . | . . . Retrieved Components . | . . . Parts Scanalyzed . | . . . Part Schematics Acquired . | . . . Parts Damaged . | . . . Bothacking | -11 -10 -9 ------------ Run | Yrd Mat Mat Used RIF Installer . | . . . Robots Hacked . | . . . Non-combat . | . . . Combat . | . . . Robot Hacks Applied . | . . . Relay Couplers Released . | . . . Fabnet Peak Effective % . | . . . Robots Rewired . | . . . Allies Hacked . | . . . Hacks Repelled . | . . . Allies | -11 -10 -9 -------- Run | Yrd Mat Mat Total Allies . | . . . Largest Group . | . . . Highest-Rated Group . | . . . Highest-Rated Ally . | . . . Total Orders . | . . . Ally Attacks . | . . . Total Damage . | . . . Kills . | . . . Allies Corrupted . | . . . Allies Melted . | . . . Intel | -11 -10 -9 ------- Run | Yrd Mat Mat Active Infowar (turns) . | . . . Robot Analysis Total . | . . . Derelict Logs Recovered . | . . . Drone Launches . | . . . Drone Recoveries . | . . . Exploration | -11 -10 -9 ------------- Run | Yrd Mat Mat Turns Passed 1006 | 130 664 212 Spaces Moved 512 | 51 337 124 Core 13 | 9 . 4 Treads 216 | 42 174 . Legs . | . . . Wheels 283 | . 163 120 Hover . | . . . Flight . | . . . Fastest Speed 50 | 50 90 86 Average Speed 126 | 140 129 110 Slowest Speed 350 | 160 160 350 Overloaded Moves . | . . . Propulsion Burnouts . | . . . Robots Hopped . | . . . Potential Cave-ins . | . . . Cave-ins Triggered . | . . . Exploration Rate (%) 20 | 5 43 13 Regions Visited 2 Branch Regions . Pre-discovered Areas 1 | . 1 . Known Exits Taken . | . . . Unknown Exits Taken 2 | 1 1 . Scrap Searched . | . . . Spaces Dug . | . . . Terrain Destroyed . | . . . Melee . | . . . Projectile . | . . . AOE . | . . . Terrain Rammed . | . . . Walls Destroyed . | . . . Machines Disabled . | . . . Actions | -11 -10 -9 --------- Run | Yrd Mat Mat Total 694 | 80 457 157 Wait 33 | 4 24 5 Move 510 | 50 336 124 Hop . | . . . Pick Up 12 | 4 7 1 Fast Attach 12 | 6 5 1 Attach 4 | . 1 3 Detach . | . . . Swap 7 | 1 4 2 Drop 8 | . 7 1 Fire 100 | 12 69 19 Melee . | . . . Ram 1 | . . 1 Kick . | . . . Crush 7 | 3 4 . Escape Stasis . | . . . Rewire . | . . . Trap . | . . . Miscellaneous . | . . . Route ------- -11/Scrapyard -10/Materials -9/Materials History --------- Turn | Location | Event 25 | -11/Scrapyard | Discovered new exit (range 16) 131 | -11/Scrapyard | Entered Materials 310 | -10/Materials | Build established: Mutant 449 | -10/Materials | Discovered new exit (range 9) 534 | -10/Materials | Core integrity fell below 50% 587 | -10/Materials | Core integrity fell below 20% 795 | -10/Materials | Entered another Materials area 795 | -9/Materials | Evolved 2 slots: Propulsion x1, Weapon x1 942 | -9/Materials | Lost 3 parts (1n1u1w) 991 | -9/Materials | Core integrity fell below 50% 999 | -9/Materials | Core integrity fell below 20% 1007 | -9/Materials | Destroyed by G-47 Trooper with Particle Gun Last Messages --------------- 00983_ Overheating: Core damaged (-48). 00983_ K-01 Serf collects debris. 00984_ Particle Gun destroyed. 00984_ Ion Engine destroyed. 00986_ Med. Laser destroyed. 00987_ Overheating: Matter decay (-30). 00987_ K-01 Serf collects debris. 00988_ Overheating: Wheel damaged (-6). 00988_ K-01 Serf destroyed. 00988_ Acquired 16 matter. 00989_ Wheel destroyed. 00992_ K-01 Serf collects debris. 00993_ Acquired Wheel. 00994_ Overheating: Wheel damaged (-17). 00994_ Wheel destroyed. 00994_ Extracted 50 matter. 00996_ G-34 Mercenary destroyed. 00997_ K-01 Serf collects debris. 01005_ Slammed into G-34 Mercenary. 01005_ K-01 Serf destroyed. Map ----- +----------------------------------------------------+ | ?????????????????????????????????????????????????? | | ?????????????????????????????????????????????????? | | ?????????????????????????????????????????????????? | | ?????????????????????????????????????????????????? | | ?????????????????????????????????????????????????? | | ?????????????????????????????????????????????????? | | ?????????????????????????????????????????????????? | | ???????+?????????????????????????????????????????? | | ?????? #?????????????????????????????????????????? | | ????? ???????????????????????????????????????????? | | #### ????????????????????????????????????????????? | | ?????????????????? ???????????????????????? | | ??????????????????# ???????????????????????? | | ???????????????????# ??? ??????????????????? | | #????????????????????# ??? ??????????????????? | | #############????????# "?? "??????????????????? | | # #????????# """ """????????????????? | | # % #????????# """ """ ???????????????? | | # #????????# w""" """ ???????????????? | | # """ """ #????????# a ???????????????? | | # """""""" #????????# u ?? ???????????? | | + """"" #????????# """ """ ???????????? | | # % #????????# """[ """ #????????????? | | #########+############ """%=""" #????????????? | | """= """ !#????????????? | | g@ g #????????????? | | "" """ [%=* +????????????? | | "" """ ##############! #????????????? | | "" """ #????????????# g k #????????????? | | #????????????####### #????????????? | | #???????????????????? #????????????? | | "" """ #????????????????????? #????????????? | | "" """ #???????????????????????#????????????? | | "" """ #????????????????????????????????????? | | #????????????????????????????????????? | | #????????????????????????????????????? | | #############????????????????????????????????????? | | #????????????????????????????????????????????????? | | ####?????????????????????????????????????????????? | | !##????????????????????????????????????????????? | | !#????????????????????????????????????????????? | | #????????????????????????????????????????????? | | !#????????????????????????????????????????????? | | !#????????????????????????????????????????????? | | !##????????????????????????????????????????????? | | ####?????????????????????????????????????????????? | | #????????????????????????????????????????????????? | | ?????????????????????????????????????????????????? | | ?????????????????????????????????????????????????? | | ?????????????????????????????????????????????????? | +----------------------------------------------------+ Best States ------------- Heat Dissipation 38 Energy Generation 10 Energy Capacity 250 Matter Stores 300 Matter Capacity 300 Sight Range 16 Terrain Scan Density 10 Armor Coverage 150 Evasion (%) 42 Recoil Reduction 2 Item Schematics ----------------- None Robot Schematics ------------------ None Fabricated ------------ Nothing Repaired ---------- Nothing Alien Tech Used ----------------- None Achievements -------------- None Challenges ------------ None Game ------ Seed ResetBackupMallet Manual? 0 Play Time 00:08:42 Cumulative 265.3 hours Start 2025.09.10 @ 16:29:26 End 2025.09.10 @ 16:36:32 Sessions 1 Manual Loads 0 Difficulty Rogue Special Mode None Game No. 142 Rogue 139 Adventurer 3 Explorer 0 Win Type - Total 7 Types 6/0/1/0/0/0/0/0/0/0 Lore% 74 Gallery% 71 Achievement% 61 Wizard Run 0 Options --------- Layout 1 ASCII 0 Keyboard 1 Movement Vi Keybinds 0 Fullscreen 1 Font 28/SmallcapsGlow Map View 50x43 Zoom Use 0% Tactical HUD 1 Map Filters NONE Filters NONE Steam X RUN: 7562e115-ec29-44db-b91b-6e2b63aaadb3